fUST/lending_fUST_20251206
["ID","MTS","AMOUNT","RATE_DAILY","PERIOD"]
[396500077,1765011300259,500.0,8.672e-05,2]
[396500078,1765011300286,500.0,8.672e-05,2]
[396500079,1765011300327,500.0,8.672e-05,2]
[396500080,1765011300354,500.0,8.672e-05,2]
[396500081,1765011300384,500.0,8.672e-05,2]
[396500082,1765011300412,500.0,8.672e-05,2]
[396500083,1765011300446,500.0,8.672e-05,2]
[396500084,1765011300490,500.0,8.672e-05,2]
[396500085,1765011300687,500.0,8.672e-05,2]
[396500086,1765011300717,500.0,8.672e-05,2]
[396500087,1765011300785,643.90723275,8.672e-05,2]
[396500088,1765011300815,500.0,8.672e-05,2]
[396500089,1765011300845,500.0,8.672e-05,2]
[396500090,1765011300878,500.0,8.672e-05,2]
[396500091,1765011300906,500.0,8.672e-05,2]
[396500092,1765011300937,500.0,8.672e-05,2]
[396500093,1765011300972,500.0,8.672e-05,2]
[396500094,1765011301082,427.84285085,8.672e-05,2]
[396500095,1765011301104,72.15714915,8.672e-05,2]
[396500096,1765011301135,500.0,8.672e-05,2]
[396500202,1765011309659,158.89,8.251e-05,2]
[396500391,1765011314867,158.91,8.217e-05,2]
[396500683,1765011336942,158.91,8.217e-05,2]
[396500684,1765011341843,388.59,7.193e-05,2]
[396500685,1765011342263,777.19,7.847e-05,2]
[396500815,1765011351625,-158.91,8.3e-05,2]
[396500817,1765011351648,-96.29284116,8.486e-05,2]
[396501592,1765011381118,-151.08,8.3e-05,2]
[396501594,1765011381140,-14.92710302,8.486e-05,2]
[396501828,1765011421652,373.76,7.191e-05,2]
[396501832,1765011422037,747.51,7.844e-05,2]
[396501863,1765011425469,152.92,8.3e-05,2]
[396501869,1765011426089,-79.33366359,8.486e-05,2]
[396501870,1765011426117,-71.69633641,8.498e-05,2]
[396502123,1765011486508,152.71,8.3e-05,2]
[396502170,1765011502975,358.57,7.27e-05,2]
[396502173,1765011503385,717.15,7.931e-05,2]
[396502214,1765011546099,152.71,8.3e-05,2]
[396502223,1765011582956,344.88,7.272e-05,2]
[396502224,1765011583357,689.77,7.933e-05,2]
[396502276,1765011605325,152.71,8.3e-05,2]
[396502414,1765011664024,331.71,7.265e-05,2]
[396502418,1765011664439,663.43,7.926e-05,2]
[396502423,1765011665772,152.72,8.3e-05,2]
[396502430,1765011668105,152.69,8.251e-05,2]
[396502493,1765011700612,221.0,8.497e-05,2]
[396502504,1765011723432,221.0,8.497e-05,2]
[396502505,1765011724904,152.72,8.3e-05,2]
[396502528,1765011744723,319.05,7.195e-05,2]
[396502529,1765011745148,638.1,7.849e-05,2]
[396502530,1765011745545,957.15,8.503e-05,2]
[396502531,1765011745886,221.0,8.497e-05,2]
[396502565,1765011769592,221.0,8.497e-05,2]
[396502569,1765011786142,-198.75820897,8.583e-05,2]
[396502570,1765011786172,152.72,8.3e-05,2]
[396502571,1765011787782,-22.24179103,8.583e-05,2]
[396502573,1765011787804,-165.54089815,8.589e-05,2]
[396502586,1765011824687,294.69,7.297e-05,2]
[396502587,1765011825095,589.37,7.96e-05,2]
[396502601,1765011844870,152.72,8.3e-05,2]
[396502629,1765011903997,152.72,8.3e-05,2]
[396502630,1765011905182,283.43,7.278e-05,2]
[396502631,1765011905353,30116.46409126,0.0001525,29]
[396502632,1765011905607,566.87,7.939e-05,2]
[396502660,1765011975238,183.43171765,8.509e-05,2]
[396502675,1765011988057,272.61,7.017e-05,2]
[396502676,1765011988475,545.22,7.655e-05,2]
[396502677,1765011988874,817.83,8.293e-05,2]
[396502679,1765011996112,-163.02757708,8.595e-05,2]
[396502680,1765011997564,183.43171765,8.509e-05,2]
[396502732,1765012070963,251.79,7.016e-05,2]
[396502733,1765012071381,503.59,7.654e-05,2]
[396502735,1765012071793,755.38,8.292e-05,2]
[396502759,1765012141814,170.880544,4.33e-05,2]
[396502760,1765012142042,170.880544,5.413e-05,2]
[396502762,1765012142422,170.880544,6.495e-05,2]
[396502764,1765012146228,-20.40414057,8.595e-05,2]
[396502765,1765012146434,-281.52186953,8.664e-05,2]
[396502766,1765012148076,170.880544,7.578e-05,2]
[396502768,1765012148464,250.0,0.00013087,3]
[396502769,1765012148808,-170.880544,8.66e-05,2]
[396502770,1765012148832,-18.47813047,8.664e-05,2]
[396502771,1765012148855,-30.55539863,8.665e-05,2]
[396502783,1765012151072,-339.59656162,8.665e-05,2]
[396502788,1765012151681,232.57,7.026e-05,2]
[396502791,1765012152126,465.13,7.665e-05,2]
[396502795,1765012152573,697.7,8.304e-05,2]
[396502799,1765012155113,-265.05990688,8.665e-05,2]
[396502801,1765012159598,-288.01848471,8.665e-05,2]
[396502803,1765012160716,1388.59456926,8.578e-05,2]
[396502806,1765012162604,-327.89807133,8.665e-05,2]
[396502807,1765012164064,-215.10551669,8.665e-05,2]
[396502809,1765012166258,-309.55841584,8.665e-05,2]
[396502811,1765012168944,-252.23401194,8.665e-05,2]
[396502812,1765012170951,-374.11756834,8.665e-05,2]
[396502814,1765012172495,-158.67369741,8.665e-05,2]
[396502815,1765012175297,-165.191317,8.665e-05,2]
[396502816,1765012179708,-429.1171305,8.665e-05,2]
[396502818,1765012183487,836.0,8.578e-05,2]
[396502819,1765012183780,-394.68712608,8.665e-05,2]
[396502820,1765012184124,-279.75286292,8.665e-05,2]
[396502823,1765012185475,-559.50572584,8.665e-05,2]
[396502824,1765012185923,-170.84051163,8.665e-05,2]
[396502826,1765012187717,-227.0,8.665e-05,2]
[396502828,1765012188945,-1516.85196331,8.665e-05,2]
[396502829,1765012189139,-3033.70392662,8.665e-05,2]
[396502830,1765012189282,-3932.60214676,8.665e-05,2]
[396502831,1765012190447,-201.77467229,8.665e-05,2]
[396502832,1765012193112,-63.22464204,8.665e-05,2]
[396502833,1765012193133,-138.55003025,8.665e-05,2]
[396502835,1765012198704,291.67741277,8.578e-05,2]
[396502838,1765012201410,220.0,8.664e-05,2]
[396502840,1765012202927,300.0,8.664e-05,2]
[396502841,1765012202982,300.0,8.664e-05,2]
[396502842,1765012203035,152.28,8.3e-05,2]
[396502843,1765012203380,152.27,8.251e-05,2]
[396502847,1765012205406,300.0,8.664e-05,2]
[396502849,1765012207002,201.77467229,8.578e-05,2]
[396502850,1765012213611,1200.0,8.664e-05,2]
[396502851,1765012231414,185.49952003,8.664e-05,2]
[396502867,1765012232569,-1200.0,8.665e-05,2]
[396502868,1765012232578,-222.0,8.665e-05,2]
[396502869,1765012232588,-300.0,8.846e-05,2]
[396502870,1765012232598,-300.0,8.846e-05,2]
[396502871,1765012232607,-300.0,8.846e-05,2]
[396502872,1765012232616,-300.0,8.846e-05,2]
[396502873,1765012232625,-300.0,8.846e-05,2]
[396502874,1765012232634,-300.0,8.846e-05,2]
[396502875,1765012232643,-300.0,8.846e-05,2]
[396502876,1765012232653,-300.0,8.846e-05,2]
[396502877,1765012232662,-300.0,8.846e-05,2]
[396502878,1765012232672,-300.0,8.846e-05,2]
[396502879,1765012232684,-300.0,8.846e-05,2]
[396502880,1765012232694,-300.0,8.846e-05,2]
[396502881,1765012232703,-300.0,8.846e-05,2]
[396502882,1765012232713,-300.0,8.846e-05,2]
[396502883,1765012232723,-300.0,8.846e-05,2]
[396502884,1765012232732,-600.0,8.846e-05,2]
[396502885,1765012232746,-2312.83697232,9.118e-05,2]
[396502886,1765012232756,-420.0,9.53e-05,2]
[396502887,1765012232765,-301.0,9.53e-05,2]
[396502888,1765012232777,-1680.0,9.53e-05,2]
[396502889,1765012232786,-1200.0,9.531e-05,2]
[396502890,1765012232795,-2398.4119403,9.666e-05,2]
[396502891,1765012232805,-720.0,9.731e-05,2]
[396502892,1765012232814,-472.6,0.0001,2]
[396502893,1765012232825,-472.6,0.0001,2]
[396502894,1765012232835,-472.6,0.0001,2]
[396502895,1765012232845,-472.6,0.0001,2]
[396502896,1765012232854,-472.6,0.0001,2]
[396502897,1765012232864,-472.6,0.0001,2]
[396502898,1765012232874,-2008.24174403,0.00010214,2]
[396502899,1765012232883,-1919.22862128,0.00010284,2]
[396502900,1765012232892,-480.0,0.00010483,2]
[396502901,1765012232902,-1010.0,0.00010483,2]
[396502902,1765012232912,-171.65453134,0.00010529,2]
[396502903,1765012232922,-631.0,0.00010571,2]
[396502904,1765012232931,-2155.0,0.00010571,2]
[396502905,1765012232941,-1359.0,0.00010571,2]
[396502906,1765012232950,-216.44942683,0.00010595,2]
[396502907,1765012232959,-864.0,0.00010704,2]
[396502908,1765012232970,-414.51471115,0.00010712,2]
[396502909,1765012232981,-271.30698193,0.000108,2]
[396502910,1765012232991,-746.12648007,0.00010837,2]
[396502911,1765012233000,-500.0,0.00010869,2]
[396502912,1765012233010,-1157.0,0.00010869,2]
[396502913,1765012233020,-500.0,0.00010869,2]
[396502914,1765012233030,-972.0,0.00010869,2]
[396502915,1765012233040,-500.0,0.00010869,2]
[396502916,1765012233049,-151.87128876,0.00010869,2]
[396502917,1765012233059,-500.0,0.00010869,2]
[396502918,1765012233068,-151.0,0.00010869,2]
[396502919,1765012233078,-151.0,0.00010869,2]
[396502920,1765012233087,-500.0,0.00010869,2]
[396502921,1765012233096,-292.11688045,0.00010869,2]
[396502922,1765012233106,-500.0,0.00010869,2]
[396502923,1765012233116,-151.0,0.00010869,2]
[396502924,1765012233287,-151.0,0.00010869,2]
[396502925,1765012233311,-500.0,0.00010869,2]
[396502926,1765012233320,-500.0,0.00010869,2]
[396502927,1765012233330,-500.0,0.00010869,2]
[396502928,1765012233339,-881.0,0.00010869,2]
[396502929,1765012233348,-217.92,0.00010889,2]
[396502930,1765012233359,-237.443,0.00010889,2]
[396502931,1765012233368,-250.0,0.00010889,2]
[396502932,1765012233378,-179.102,0.00010889,2]
[396502933,1765012233387,-258.084,0.00010889,2]
[396502934,1765012233402,-266.116,0.00010889,2]
[396502935,1765012233411,-250.0,0.00010899,2]
[396502936,1765012233421,-117397.49334188,0.000109,2]
[396502937,1765012233431,-151.0,0.000109,2]
[396502938,1765012233441,-169.730852,0.00010958,2]
[396502939,1765012233451,-4495.783966,0.00010958,2]
[396502940,1765012233460,-500.0,0.00010958,2]
[396502941,1765012233469,-500.0,0.00010958,2]
[396502942,1765012233480,-500.0,0.00010958,2]
[396502943,1765012233489,-500.0,0.00010958,2]
[396502944,1765012233499,-500.0,0.00010958,2]
[396502945,1765012233508,-519.44903107,0.00010958,2]
[396502946,1765012233517,-500.0,0.00010958,2]
[396502947,1765012233527,-500.0,0.00010958,2]
[396502948,1765012233536,-500.0,0.00010958,2]
[396502949,1765012233545,-500.0,0.00010958,2]
[396502950,1765012233555,-500.0,0.00010958,2]
[396502951,1765012233564,-752.44,0.00010958,2]
[396502952,1765012233573,-1339.27,0.00010958,2]
[396502953,1765012233583,-500.0,0.00010958,2]
[396502954,1765012233593,-1412.18,0.00010958,2]
[396502955,1765012233603,-623.35540731,0.00010958,2]
[396502956,1765012233613,-500.0,0.00010958,2]
[396502957,1765012233622,-500.0,0.00010958,2]
[396502958,1765012233631,-500.0,0.00010958,2]
[396502959,1765012233640,-500.0,0.00010958,2]
[396502960,1765012233650,-500.0,0.00010958,2]
[396502961,1765012233659,-500.0,0.00010958,2]
[396502962,1765012233669,-500.0,0.00010958,2]
[396502963,1765012233680,-500.0,0.00010958,2]
[396502964,1765012233689,-500.0,0.00010958,2]
[396502965,1765012233699,-500.0,0.00010958,2]
[396502966,1765012233709,-500.0,0.00010958,2]
[396502967,1765012233718,-500.0,0.00010958,2]
[396502968,1765012233728,-500.0,0.00010958,2]
[396502969,1765012233737,-500.0,0.00010958,2]
[396502970,1765012233747,-500.0,0.00010958,2]
[396502971,1765012233756,-500.0,0.00010958,2]
[396502972,1765012233765,-500.0,0.00010958,2]
[396502973,1765012233774,-500.0,0.00010958,2]
[396502974,1765012233784,-500.0,0.00010958,2]
[396502975,1765012233794,-500.0,0.00010958,2]
[396502976,1765012233804,-500.0,0.00010958,2]
[396502977,1765012233814,-500.0,0.00010958,2]
[396502978,1765012233823,-500.0,0.00010958,2]
[396502979,1765012233832,-500.0,0.00010958,2]
[396502980,1765012233841,-818.04,0.00010958,2]
[396502981,1765012233850,-500.0,0.00010958,2]
[396502982,1765012233861,-1343.58,0.00010958,2]
[396502983,1765012233871,-1080.98,0.00010958,2]
[396502984,1765012233882,-822.04,0.00010958,2]
[396502985,1765012233891,-500.0,0.00010958,2]
[396502986,1765012233900,-500.0,0.00010958,2]
[396502987,1765012233910,-500.0,0.00010958,2]
[396502988,1765012233920,-1123.52,0.00010958,2]
[396502989,1765012233930,-500.0,0.00010958,2]
[396502990,1765012233939,-500.0,0.00010958,2]
[396502991,1765012233950,-500.0,0.00010958,2]
[396502992,1765012233959,-500.0,0.00010958,2]
[396502993,1765012233969,-500.0,0.00010958,2]
[396502994,1765012233980,-500.0,0.00010958,2]
[396502995,1765012233989,-500.0,0.00010958,2]
[396502996,1765012233999,-625.37,0.00010958,2]
[396502997,1765012234009,-500.0,0.00010958,2]
[396502998,1765012234018,-500.0,0.00010958,2]
[396502999,1765012234029,-500.0,0.00010958,2]
[396503000,1765012234040,-500.0,0.00010958,2]
[396503001,1765012234050,-764.78,0.00010958,2]
[396503002,1765012234059,-500.0,0.00010958,2]
[396503003,1765012234069,-500.0,0.00010958,2]
[396503004,1765012234078,-790.75,0.00010958,2]
[396503005,1765012234088,-882.77,0.00010958,2]
[396503006,1765012234097,-500.0,0.00010958,2]
[396503007,1765012234106,-500.0,0.00010958,2]
[396503008,1765012234116,-500.0,0.00010958,2]
[396503009,1765012234126,-2000.51,0.00010958,2]
[396503010,1765012234136,-500.0,0.00010958,2]
[396503011,1765012234145,-500.0,0.00010958,2]
[396503012,1765012234155,-500.0,0.00010958,2]
[396503013,1765012234165,-500.0,0.00010958,2]
[396503014,1765012234175,-719.92,0.00010958,2]
[396503015,1765012234185,-1605.0,0.00010958,2]
[396503016,1765012234194,-500.0,0.00010958,2]
[396503017,1765012234204,-500.0,0.00010958,2]
[396503018,1765012234215,-500.0,0.00010958,2]
[396503019,1765012234225,-509.61,0.00010958,2]
[396503020,1765012234234,-500.0,0.00010958,2]
[396503021,1765012234244,-500.0,0.00010958,2]
[396503022,1765012234253,-500.0,0.00010958,2]
[396503023,1765012234262,-500.0,0.00010958,2]
[396503024,1765012234272,-500.0,0.00010958,2]
[396503025,1765012234281,-578.23202515,0.00010958,2]
[396503026,1765012234290,-500.0,0.00010958,2]
[396503027,1765012234300,-500.0,0.00010958,2]
[396503028,1765012234309,-829.65,0.00010958,2]
[396503029,1765012234320,-500.0,0.00010958,2]
[396503030,1765012234332,-500.0,0.00010958,2]
[396503031,1765012234342,-500.0,0.00010958,2]
[396503032,1765012234352,-500.0,0.00010958,2]
[396503033,1765012234362,-500.0,0.00010958,2]
[396503034,1765012234371,-720.1,0.00010958,2]
[396503035,1765012234380,-500.0,0.00010958,2]
[396503036,1765012234389,-670.88,0.00010958,2]
[396503037,1765012234401,-500.0,0.00010958,2]
[396503038,1765012234410,-500.0,0.00010958,2]
[396503039,1765012234420,-500.0,0.00010958,2]
[396503040,1765012234429,-500.0,0.00010958,2]
[396503041,1765012234439,-500.0,0.00010958,2]
[396503042,1765012234448,-500.0,0.00010958,2]
[396503043,1765012234458,-500.0,0.00010958,2]
[396503044,1765012234468,-500.0,0.00010958,2]
[396503045,1765012234480,-500.0,0.00010958,2]
[396503046,1765012234490,-500.0,0.00010958,2]
[396503047,1765012234502,-500.0,0.00010958,2]
[396503048,1765012234512,-500.0,0.00010958,2]
[396503049,1765012234522,-500.0,0.00010958,2]
[396503050,1765012234532,-500.0,0.00010958,2]
[396503051,1765012234541,-500.0,0.00010958,2]
[396503052,1765012234551,-500.0,0.00010958,2]
[396503053,1765012234561,-500.0,0.00010958,2]
[396503054,1765012234571,-500.0,0.00010958,2]
[396503055,1765012234580,-209.00865483,0.00010958,2]
[396503056,1765012234590,-500.0,0.00010958,2]
[396503057,1765012234599,-500.0,0.00010958,2]
[396503058,1765012234608,-500.0,0.00010958,2]
[396503059,1765012234618,-500.0,0.00010958,2]
[396503060,1765012234627,-645.15369323,0.00010958,2]
[396503061,1765012234636,-500.0,0.00010958,2]
[396503062,1765012234645,-658.36,0.00010958,2]
[396503063,1765012234655,-1371.47,0.00010958,2]
[396503064,1765012234664,-500.0,0.00010958,2]
[396503065,1765012234674,-500.0,0.00010958,2]
[396503066,1765012234684,-500.0,0.00010958,2]
[396503067,1765012234694,-500.0,0.00010958,2]
[396503068,1765012234704,-500.0,0.00010958,2]
[396503069,1765012234714,-538.68,0.00010958,2]
[396503070,1765012234723,-1630.46,0.00010958,2]
[396503071,1765012234733,-500.0,0.00010958,2]
[396503072,1765012234744,-500.0,0.00010958,2]
[396503073,1765012234754,-500.0,0.00010958,2]
[396503074,1765012234765,-650.92,0.00010958,2]
[396503075,1765012234774,-500.0,0.00010958,2]
[396503076,1765012234783,-500.0,0.00010958,2]
[396503077,1765012234793,-500.0,0.00010958,2]
[396503078,1765012234802,-500.0,0.00010958,2]
[396503079,1765012234812,-578.25,0.00010958,2]
[396503080,1765012234822,-500.0,0.00010958,2]
[396503081,1765012234831,-728.08,0.00010958,2]
[396503082,1765012234841,-401.72033045,0.00010958,2]
[396503083,1765012234852,-500.0,0.00010958,2]
[396503084,1765012234863,-500.0,0.00010958,2]
[396503085,1765012234875,-500.0,0.00010958,2]
[396503086,1765012234885,-500.0,0.00010958,2]
[396503087,1765012234895,-500.0,0.00010958,2]
[396503088,1765012234905,-500.0,0.00010958,2]
[396503089,1765012234915,-500.0,0.00010958,2]
[396503090,1765012234925,-469.25909558,0.00010958,2]
[396503091,1765012234937,-881.46,0.00010958,2]
[396503092,1765012234946,-500.0,0.00010958,2]
[396503093,1765012234955,-1357.92,0.00010958,2]
[396503094,1765012234964,-500.0,0.00010958,2]
[396503095,1765012234973,-500.0,0.00010958,2]
[396503096,1765012234983,-500.0,0.00010958,2]
[396503097,1765012234992,-500.0,0.00010958,2]
[396503098,1765012235001,-398.53144223,0.00010958,2]
[396503099,1765012235010,-910.2,0.00010958,2]
[396503100,1765012235019,-500.0,0.00010958,2]
[396503101,1765012235028,-530.22,0.00010958,2]
[396503102,1765012235037,-1211.45,0.00010958,2]
[396503103,1765012235046,-650.25,0.00010958,2]
[396503104,1765012235055,-500.0,0.00010958,2]
[396503105,1765012235065,-1541.34,0.00010958,2]
[396503106,1765012235074,-500.0,0.00010958,2]
[396503107,1765012235083,-500.0,0.00010958,2]
[396503108,1765012235093,-1078.71,0.00010958,2]
[396503109,1765012235103,-1501.68,0.00010958,2]
[396503110,1765012235113,-500.0,0.00010958,2]
[396503111,1765012235123,-500.0,0.00010958,2]
[396503112,1765012235132,-500.0,0.00010958,2]
[396503113,1765012235144,-500.0,0.00010958,2]
[396503114,1765012235154,-500.0,0.00010958,2]
[396503115,1765012235163,-1881.4,0.00010958,2]
[396503116,1765012235172,-500.0,0.00010958,2]
[396503117,1765012235182,-500.0,0.00010958,2]
[396503118,1765012235191,-500.0,0.00010958,2]
[396503119,1765012235201,-500.0,0.00010958,2]
[396503120,1765012235211,-1391.86,0.00010958,2]
[396503121,1765012235220,-500.0,0.00010958,2]
[396503122,1765012235230,-500.0,0.00010958,2]
[396503123,1765012235239,-500.0,0.00010958,2]
[396503124,1765012235248,-500.0,0.00010958,2]
[396503125,1765012235258,-553.48,0.00010958,2]
[396503126,1765012235268,-500.0,0.00010958,2]
[396503127,1765012235282,-500.0,0.00010958,2]
[396503128,1765012235292,-578.15,0.00010958,2]
[396503129,1765012235302,-2646.79,0.00010958,2]
[396503130,1765012235311,-500.0,0.00010958,2]
[396503131,1765012235320,-500.0,0.00010958,2]
[396503132,1765012235330,-1458.22,0.00010958,2]
[396503133,1765012235339,-500.0,0.00010958,2]
[396503134,1765012235349,-500.0,0.00010958,2]
[396503135,1765012235359,-516.98,0.00010958,2]
[396503136,1765012235369,-1321.72,0.00010958,2]
[396503137,1765012235380,-500.0,0.00010958,2]
[396503138,1765012235390,-500.0,0.00010958,2]
[396503139,1765012235402,-500.0,0.00010958,2]
[396503140,1765012235412,-528.83413881,0.00010958,2]
[396503141,1765012236130,500.0,8.664e-05,2]
[396503142,1765012236159,576.49098158,8.664e-05,2]
[396503143,1765012236198,500.0,8.664e-05,2]
[396503144,1765012236228,500.0,8.664e-05,2]
[396503145,1765012236270,287.01672792,8.664e-05,2]
[396503146,1765012236304,500.0,8.664e-05,2]
[396503147,1765012236350,500.0,8.664e-05,2]
[396503148,1765012236380,500.0,8.664e-05,2]
[396503149,1765012236421,500.0,8.664e-05,2]
[396503150,1765012236468,500.0,8.664e-05,2]
[396503151,1765012236496,500.0,8.664e-05,2]
[396503152,1765012236523,308.11029507,8.664e-05,2]
[396503153,1765012236568,500.0,8.664e-05,2]
[396503154,1765012236596,500.0,8.664e-05,2]
[396503155,1765012236629,316.56780311,8.664e-05,2]
[396503156,1765012236651,183.43219689,8.664e-05,2]
[396503157,1765012236702,500.0,8.664e-05,2]
[396503158,1765012236784,500.0,8.664e-05,2]
[396503159,1765012236834,500.0,8.664e-05,2]
[396503160,1765012236891,500.0,8.664e-05,2]
[396503161,1765012236948,500.0,8.664e-05,2]
[396503162,1765012236977,500.0,8.664e-05,2]
[396503163,1765012237014,500.0,8.664e-05,2]
[396503164,1765012237048,500.0,8.664e-05,2]
[396503165,1765012237080,500.0,8.664e-05,2]
[396503166,1765012237137,500.0,8.664e-05,2]
[396503167,1765012237180,500.0,8.664e-05,2]
[396503168,1765012237209,500.0,8.664e-05,2]
[396503169,1765012237257,500.0,8.664e-05,2]
[396503170,1765012237462,500.0,8.664e-05,2]
[396503171,1765012237503,500.0,8.664e-05,2]
[396503172,1765012237532,500.0,8.664e-05,2]
[396503173,1765012237581,500.0,8.664e-05,2]
[396503174,1765012237609,500.0,8.664e-05,2]
[396503175,1765012237641,500.0,8.664e-05,2]
[396503176,1765012237684,316.57780311,8.664e-05,2]
[396503177,1765012237708,183.42219689,8.664e-05,2]
[396503178,1765012237750,500.0,8.664e-05,2]
[396503179,1765012237798,500.0,8.664e-05,2]
[396503180,1765012237836,500.0,8.664e-05,2]
[396503182,1765012237870,500.0,8.664e-05,2]
[396503183,1765012237920,352.22849746,8.664e-05,2]
[396503185,1765012237950,500.0,8.664e-05,2]
[396503188,1765012237996,500.0,8.664e-05,2]
[396503193,1765012238030,500.0,8.664e-05,2]
[396503198,1765012238064,500.0,8.664e-05,2]
[396503203,1765012238103,500.0,8.664e-05,2]
[396503207,1765012238133,500.0,8.664e-05,2]
[396503212,1765012238167,500.0,8.664e-05,2]
[396503216,1765012238202,500.0,8.664e-05,2]
[396503221,1765012238233,500.0,8.664e-05,2]
[396503226,1765012238267,500.0,8.664e-05,2]
[396503230,1765012238295,500.0,8.664e-05,2]
[396503235,1765012238333,500.0,8.664e-05,2]
[396503239,1765012238368,380.58161053,8.664e-05,2]
[396503244,1765012238405,500.0,8.664e-05,2]
[396503249,1765012238440,500.0,8.664e-05,2]
[396503255,1765012238486,83.77769512,8.664e-05,2]
[396503258,1765012238510,416.22230488,8.664e-05,2]
[396503263,1765012238545,500.0,8.664e-05,2]
[396503268,1765012238583,500.0,8.664e-05,2]
[396503273,1765012238613,500.0,8.664e-05,2]
[396503277,1765012238644,500.0,8.664e-05,2]
[396503282,1765012238684,500.0,8.664e-05,2]
[396503286,1765012238714,500.0,8.664e-05,2]
[396503291,1765012238744,500.0,8.664e-05,2]
[396503295,1765012238775,214.81,6.935e-05,2]
[396503300,1765012238814,500.0,8.664e-05,2]
[396503305,1765012238851,500.0,8.664e-05,2]
[396503313,1765012238913,500.0,8.664e-05,2]
[396503318,1765012238952,500.0,8.664e-05,2]
[396503324,1765012238994,500.0,8.664e-05,2]
[396503327,1765012239028,500.0,8.664e-05,2]
[396503328,1765012239066,500.0,8.664e-05,2]
[396503329,1765012239097,500.0,8.664e-05,2]
[396503330,1765012239144,500.0,8.664e-05,2]
[396503331,1765012239174,429.61,7.566e-05,2]
[396503332,1765012239204,500.0,8.664e-05,2]
[396503333,1765012239238,439.36769512,8.664e-05,2]
[396503334,1765012239261,60.63230488,8.664e-05,2]
[396503335,1765012239291,500.0,8.664e-05,2]
[396503336,1765012239481,500.0,8.664e-05,2]
[396503337,1765012239513,500.0,8.664e-05,2]
[396503338,1765012239547,500.0,8.664e-05,2]
[396503339,1765012239580,500.0,8.664e-05,2]
[396503340,1765012239622,500.0,8.664e-05,2]
[396503341,1765012239663,500.0,8.664e-05,2]
[396503342,1765012239697,500.0,8.664e-05,2]
[396503343,1765012239732,500.0,8.664e-05,2]
[396503344,1765012239763,500.0,8.664e-05,2]
[396503345,1765012239798,500.0,8.664e-05,2]
[396503346,1765012239828,500.0,8.664e-05,2]
[396503348,1765012239868,500.0,8.664e-05,2]
[396503351,1765012239956,644.42,8.196e-05,2]
[396503352,1765012240002,500.0,8.664e-05,2]
[396503353,1765012240034,500.0,8.664e-05,2]
[396503354,1765012240074,500.0,8.664e-05,2]
[396503355,1765012240106,500.0,8.664e-05,2]
[396503357,1765012240146,581.78266534,8.664e-05,2]
[396503359,1765012240181,213.17502978,8.664e-05,2]
[396503360,1765012240204,286.82497022,8.664e-05,2]
[396503361,1765012240238,500.0,8.664e-05,2]
[396503362,1765012240284,500.0,8.664e-05,2]
[396503364,1765012240769,-257.0,8.826e-05,2]
[396503365,1765012241096,-602.23,8.826e-05,2]
[396503366,1765012241107,-1074.03,9.457e-05,2]